[Event "*** Titled Tuesday Blitz"]
[Site "Chess.com"]
[Date "2021.02.02"]
[Round "8"]
[White "Khnykin_Nikolay"]
[Black "SkippingLaptop"]
[Result "0-1"]
[WhiteElo "2074"]
[BlackElo "2079"]
[TimeControl "180+1"]
[EndTime "11:29:23 PST"]
[Termination "SkippingLaptop won on time"]

1. e4 {[%clk 0:03:00.9]} 1... c5 {[%clk 0:02:59.4]} 2. d4 {[%clk 0:02:59.9]}
2... cxd4 {[%clk 0:02:58.2]} 3. c3 {[%clk 0:03:00.1]} 3... g6 {[%clk 0:02:57.4]}
4. cxd4 {[%clk 0:02:59.5]} 4... d5 {[%clk 0:02:57.2]} 5. exd5 {[%clk 0:02:57]}
5... Nf6 {[%clk 0:02:55.7]} 6. Bc4 {[%clk 0:02:55.4]} 6... Bg7 {[%clk
0:02:48.5]} 7. Nc3 {[%clk 0:02:52.4]} 7... O-O {[%clk 0:02:48]} 8. Nf3 {[%clk
0:02:51.7]} 8... Nbd7 {[%clk 0:02:47.9]} 9. O-O {[%clk 0:02:50.8]} 9... Nb6
{[%clk 0:02:48.2]} 10. Bb3 {[%clk 0:02:50.8]} 10... Nbxd5 {[%clk 0:02:47.3]} 11.
Re1 {[%clk 0:02:48]} 11... Bg4 {[%clk 0:02:45.3]} 12. Bg5 {[%clk 0:02:37.6]}
12... h6 {[%clk 0:02:43.3]} 13. Bxf6 {[%clk 0:02:37.3]} 13... Nxf6 {[%clk
0:02:43.9]} 14. h3 {[%clk 0:02:33.3]} 14... Bf5 {[%clk 0:02:41.8]} 15. Ne5
{[%clk 0:02:29.8]} 15... Rc8 {[%clk 0:02:37.6]} 16. g4 {[%clk 0:02:25.5]} 16...
Bd7 {[%clk 0:02:33]} 17. Nxg6 {[%clk 0:02:22.8]} 17... Bc6 {[%clk 0:02:17.7]}
18. Nxf8 {[%clk 0:02:16.4]} 18... Kxf8 {[%clk 0:02:18.6]} 19. d5 {[%clk
0:02:13]} 19... Bd7 {[%clk 0:02:17.1]} 20. d6 {[%clk 0:02:10]} 20... e6 {[%clk
0:02:15.7]} 21. Ne4 {[%clk 0:02:00.4]} 21... Nxe4 {[%clk 0:02:14]} 22. Rxe4
{[%clk 0:01:55.5]} 22... Qh4 {[%clk 0:02:14.5]} 23. Rc1 {[%clk 0:01:32.6]} 23...
Rxc1 {[%clk 0:01:59]} 24. Qxc1 {[%clk 0:01:30.4]} 24... Bc6 {[%clk 0:01:59.2]}
25. Qc5 {[%clk 0:00:36.7]} 25... Kg8 {[%clk 0:01:52.9]} 26. Re3 {[%clk
0:00:30.8]} 26... Bxb2 {[%clk 0:01:40.6]} 27. Qxa7 {[%clk 0:00:21.4]} 27... Bc1
{[%clk 0:01:33.6]} 28. Rg3 {[%clk 0:00:19.5]} 28... Bf4 {[%clk 0:01:31.4]} 29.
Rc3 {[%clk 0:00:16.1]} 29... Bxd6 {[%clk 0:01:24.1]} 30. Qa8+ {[%clk 0:00:14.9]}
30... Kg7 {[%clk 0:01:22.4]} 31. Qa5 {[%clk 0:00:13]} 31... Qf6 {[%clk
0:01:18.5]} 32. Bc2 {[%clk 0:00:11]} 32... Qf4 {[%clk 0:01:13.5]} 33. Kf1 {[%clk
0:00:05.6]} 33... Bb4 {[%clk 0:00:54.8]} 34. Qh5 {[%clk 0:00:01.3]} 34... Bxc3
{[%clk 0:00:49.4]} 0-1

[Event "*** Titled Tuesday Blitz"]
[Site "Chess.com"]
[Date "2021.02.02"]
[Round "8"]
[White "fabianvivasz"]
[Black "woodhy"]
[Result "1-0"]
[WhiteElo "2320"]
[BlackElo "2448"]
[TimeControl "180+1"]
[EndTime "11:29:24 PST"]
[Termination "fabianvivasz won by resignation"]

1. e4 {[%clk 0:03:00.2]} 1... e6 {[%clk 0:02:58.9]} 2. d4 {[%clk 0:02:58.5]}
2... d5 {[%clk 0:02:58.8]} 3. Nd2 {[%clk 0:02:58.8]} 3... c5 {[%clk 0:02:58.6]}
4. Ngf3 {[%clk 0:02:58.2]} 4... Nc6 {[%clk 0:02:56.4]} 5. exd5 {[%clk
0:02:54.6]} 5... exd5 {[%clk 0:02:56]} 6. Bb5 {[%clk 0:02:51.8]} 6... Bd6 {[%clk
0:02:55.7]} 7. dxc5 {[%clk 0:02:51.2]} 7... Bxc5 {[%clk 0:02:56.6]} 8. O-O
{[%clk 0:02:48.3]} 8... Ne7 {[%clk 0:02:57]} 9. Nb3 {[%clk 0:02:40.7]} 9... Bd6
{[%clk 0:02:56.3]} 10. Bg5 {[%clk 0:02:26.9]} 10... O-O {[%clk 0:02:55.2]} 11.
Qd2 {[%clk 0:02:22.4]} 11... Bg4 {[%clk 0:02:44.1]} 12. Nfd4 {[%clk 0:02:14.8]}
12... Qc7 {[%clk 0:02:38.9]} 13. h3 {[%clk 0:02:13.4]} 13... Bh5 {[%clk
0:02:21.1]} 14. Be2 {[%clk 0:02:10.6]} 14... Bxe2 {[%clk 0:02:16.3]} 15. Qxe2
{[%clk 0:02:10.5]} 15... Rfe8 {[%clk 0:02:15.8]} 16. Nb5 {[%clk 0:02:07.1]}
16... Bh2+ {[%clk 0:01:40.7]} 17. Kh1 {[%clk 0:02:05.9]} 17... Qe5 {[%clk
0:01:41.6]} 18. Qd2 {[%clk 0:01:07.6]} 18... h6 {[%clk 0:01:25.9]} 19. f4 {[%clk
0:00:59.8]} 19... Qxb2 {[%clk 0:00:50.8]} 20. Bxe7 {[%clk 0:00:55.9]} 20... Rxe7
{[%clk 0:00:51.7]} 21. Kxh2 {[%clk 0:00:49.9]} 21... Rae8 {[%clk 0:00:51.8]} 22.
Qc3 {[%clk 0:00:33.9]} 22... Qxc3 {[%clk 0:00:41.3]} 23. Nxc3 {[%clk 0:00:34.8]}
23... d4 {[%clk 0:00:41.5]} 24. Nb5 {[%clk 0:00:31.9]} 24... Re4 {[%clk
0:00:18.4]} 25. Nd6 {[%clk 0:00:31]} 25... Re2 {[%clk 0:00:16.3]} 26. Nxe8
{[%clk 0:00:31]} 26... Rxe8 {[%clk 0:00:17.2]} 27. Rfe1 {[%clk 0:00:30.8]} 27...
Rd8 {[%clk 0:00:17.3]} 28. Rad1 {[%clk 0:00:31]} 28... Nb4 {[%clk 0:00:17.6]}
29. c3 {[%clk 0:00:30.6]} 29... Nxa2 {[%clk 0:00:16.9]} 30. Rxd4 {[%clk
0:00:29.5]} 30... Rc8 {[%clk 0:00:17.3]} 31. c4 {[%clk 0:00:29.2]} 31... Nc3
{[%clk 0:00:16.5]} 32. Re3 {[%clk 0:00:26.7]} 32... Na4 {[%clk 0:00:15.7]} 33.
c5 {[%clk 0:00:25.7]} 33... Nb6 {[%clk 0:00:16.6]} 34. cxb6 {[%clk 0:00:25.7]}
34... axb6 {[%clk 0:00:17.4]} 35. Rd7 {[%clk 0:00:24.7]} 1-0

[Event "*** Titled Tuesday Blitz"]
[Site "Chess.com"]
[Date "2021.02.02"]
[Round "8"]
[White "HElissalt"]
[Black "Das_Virus_2020"]
[Result "0-1"]
[WhiteElo "2261"]
[BlackElo "2421"]
[TimeControl "180+1"]
[EndTime "11:29:25 PST"]
[Termination "Das_Virus_2020 won on time"]

1. d4 {[%clk 0:03:00.9]} 1... Nf6 {[%clk 0:02:59]} 2. c4 {[%clk 0:02:57.3]} 2...
c5 {[%clk 0:02:58.9]} 3. d5 {[%clk 0:02:56.7]} 3... b5 {[%clk 0:02:58.5]} 4.
cxb5 {[%clk 0:02:45.3]} 4... a6 {[%clk 0:02:58.4]} 5. e3 {[%clk 0:02:39.3]} 5...
Bb7 {[%clk 0:02:55.2]} 6. Nc3 {[%clk 0:02:34.7]} 6... e6 {[%clk 0:02:54]} 7. e4
{[%clk 0:02:29.4]} 7... exd5 {[%clk 0:02:48.9]} 8. exd5 {[%clk 0:02:26.5]} 8...
Qe7+ {[%clk 0:02:27.3]} 9. Be2 {[%clk 0:02:21.4]} 9... axb5 {[%clk 0:02:19.9]}
10. Nxb5 {[%clk 0:02:16.3]} 10... Nxd5 {[%clk 0:02:07.6]} 11. Nf3 {[%clk
0:02:15.5]} 11... Na6 {[%clk 0:01:41]} 12. O-O {[%clk 0:02:11.6]} 12... Ndc7
{[%clk 0:01:24.1]} 13. Bg5 {[%clk 0:02:00.8]} 13... f6 {[%clk 0:01:17.9]} 14.
Bf4 {[%clk 0:01:55.3]} 14... Nxb5 {[%clk 0:01:17.5]} 15. Bxb5 {[%clk 0:01:53.8]}
15... Kd8 {[%clk 0:00:53.9]} 16. Re1 {[%clk 0:01:19]} 16... Qf7 {[%clk
0:00:51.1]} 17. Qd2 {[%clk 0:00:44.6]} 17... Nc7 {[%clk 0:00:44]} 18. Rad1
{[%clk 0:00:34.7]} 18... Nxb5 {[%clk 0:00:37]} 19. Qe2 {[%clk 0:00:16]} 19...
Nc7 {[%clk 0:00:32.7]} 20. a3 {[%clk 0:00:09.5]} 20... Bc6 {[%clk 0:00:31.6]}
21. Nd2 {[%clk 0:00:08.2]} 21... Ne6 {[%clk 0:00:24.3]} 22. Bg3 {[%clk
0:00:07.6]} 22... Nd4 {[%clk 0:00:24.3]} 23. Qd3 {[%clk 0:00:07]} 23... Be7
{[%clk 0:00:22.2]} 24. Ne4 {[%clk 0:00:06.4]} 24... Re8 {[%clk 0:00:20.7]} 25.
b4 {[%clk 0:00:03.7]} 25... Qb3 {[%clk 0:00:16.3]} 0-1

[Event "*** Titled Tuesday Blitz"]
[Site "Chess.com"]
[Date "2021.02.02"]
[Round "8"]
[White "anon132639"]
[Black "Sychev_Klementy"]
[Result "0-1"]
[WhiteElo "2805"]
[BlackElo "2908"]
[TimeControl "180+1"]
[EndTime "11:29:26 PST"]
[Termination "Sychev_Klementy won by resignation"]

1. Nf3 {[%clk 0:02:59.7]} 1... c5 {[%clk 0:02:51.2]} 2. c4 {[%clk 0:02:55.9]}
2... Nc6 {[%clk 0:02:48.8]} 3. b3 {[%clk 0:02:55.2]} 3... e5 {[%clk 0:02:44.4]}
4. Nc3 {[%clk 0:02:50.8]} 4... g6 {[%clk 0:02:38.6]} 5. Bb2 {[%clk 0:02:50.5]}
5... Bg7 {[%clk 0:02:39]} 6. d3 {[%clk 0:02:44.9]} 6... d6 {[%clk 0:02:29.8]} 7.
g3 {[%clk 0:02:45.1]} 7... Nge7 {[%clk 0:02:29]} 8. Bg2 {[%clk 0:02:44.3]} 8...
O-O {[%clk 0:02:29.1]} 9. h4 {[%clk 0:02:44.4]} 9... h6 {[%clk 0:02:28]} 10. Qd2
{[%clk 0:02:32.8]} 10... f5 {[%clk 0:02:17.5]} 11. h5 {[%clk 0:01:55.9]} 11...
g5 {[%clk 0:02:16.4]} 12. O-O-O {[%clk 0:01:46.4]} 12... a6 {[%clk 0:02:09.4]}
13. Kb1 {[%clk 0:01:40.4]} 13... Rb8 {[%clk 0:02:08.6]} 14. Nxg5 {[%clk
0:01:12.8]} 14... hxg5 {[%clk 0:02:07.4]} 15. Qxg5 {[%clk 0:01:13.7]} 15... Kh7
{[%clk 0:02:04.4]} 16. Bc1 {[%clk 0:01:08.8]} 16... e4 {[%clk 0:01:44.2]} 17.
dxe4 {[%clk 0:00:41.7]} 17... Bxc3 {[%clk 0:01:40.5]} 18. Qh6+ {[%clk
0:00:42.1]} 18... Kg8 {[%clk 0:01:39.7]} 19. Rxd6 {[%clk 0:00:43]} 19... Bg7
{[%clk 0:01:30.1]} 20. Qf4 {[%clk 0:00:33.5]} 20... Qc7 {[%clk 0:01:14.6]} 21.
h6 {[%clk 0:00:26.2]} 21... Be5 {[%clk 0:01:12.5]} 22. Qg5+ {[%clk 0:00:26.8]}
22... Kh7 {[%clk 0:01:04.5]} 23. Rd3 {[%clk 0:00:19.5]} 23... Nd4 {[%clk
0:01:00.7]} 24. Bb2 {[%clk 0:00:18.2]} 24... b5 {[%clk 0:00:56.3]} 25. cxb5
{[%clk 0:00:16.4]} 25... axb5 {[%clk 0:00:54.7]} 26. e3 {[%clk 0:00:16.8]} 26...
Ne6 {[%clk 0:00:53.9]} 27. Bxe5 {[%clk 0:00:14.9]} 27... Nxg5 {[%clk 0:00:49.4]}
28. Bxc7 {[%clk 0:00:14.1]} 28... Rb7 {[%clk 0:00:49.9]} 29. Bd6 {[%clk
0:00:09.2]} 29... Nxe4 {[%clk 0:00:49.9]} 30. Bxe4 {[%clk 0:00:07.8]} 30... fxe4
{[%clk 0:00:49.8]} 31. Rdd1 {[%clk 0:00:08.7]} 31... Bg4 {[%clk 0:00:47.7]} 32.
Rc1 {[%clk 0:00:06.5]} 32... c4 {[%clk 0:00:48]} 33. Rh4 {[%clk 0:00:05.6]}
33... Be2 {[%clk 0:00:45.9]} 34. bxc4 {[%clk 0:00:04.3]} 34... bxc4+ {[%clk
0:00:44.8]} 35. Ka1 {[%clk 0:00:04.9]} 35... Rxf2 {[%clk 0:00:43.5]} 36. Rh5
{[%clk 0:00:02.7]} 36... Bxh5 {[%clk 0:00:42.2]} 0-1

[Event "*** Titled Tuesday Blitz"]
[Site "Chess.com"]
[Date "2021.02.02"]
[Round "8"]
[White "Trickster_Pony"]
[Black "MarceloPlaya"]
[Result "0-1"]
[WhiteElo "1458"]
[BlackElo "2270"]
[TimeControl "180+1"]
[EndTime "11:29:27 PST"]
[Termination "MarceloPlaya won on time"]

1. c4 {[%clk 0:03:00.9]} 1... e6 {[%clk 0:02:55.8]} 2. g3 {[%clk 0:02:58.9]}
2... Nf6 {[%clk 0:02:54.8]} 3. Bg2 {[%clk 0:02:58.6]} 3... d5 {[%clk 0:02:53.8]}
4. d4 {[%clk 0:02:53.9]} 4... Bb4+ {[%clk 0:02:52.5]} 5. Nc3 {[%clk 0:02:52.7]}
5... O-O {[%clk 0:02:51.4]} 6. a3 {[%clk 0:02:50.7]} 6... Bxc3+ {[%clk
0:02:50.4]} 7. bxc3 {[%clk 0:02:51.6]} 7... Nc6 {[%clk 0:02:46.8]} 8. cxd5
{[%clk 0:02:42.7]} 8... exd5 {[%clk 0:02:45.8]} 9. Bb2 {[%clk 0:02:39.9]} 9...
Na5 {[%clk 0:02:43.3]} 10. Nf3 {[%clk 0:02:36]} 10... Nc4 {[%clk 0:02:42.4]} 11.
Bc1 {[%clk 0:02:33.7]} 11... Ne4 {[%clk 0:02:39.7]} 12. Qc2 {[%clk 0:02:28.8]}
12... Bf5 {[%clk 0:02:37.9]} 13. Nh4 {[%clk 0:02:19.1]} 13... Qf6 {[%clk
0:02:10.8]} 14. Nxf5 {[%clk 0:02:10.6]} 14... Qxf5 {[%clk 0:02:09.8]} 15. f3
{[%clk 0:02:04.3]} 15... Nxg3 {[%clk 0:02:07.7]} 16. e4 {[%clk 0:01:46.4]} 16...
dxe4 {[%clk 0:01:50.8]} 17. hxg3 {[%clk 0:01:40.5]} 17... Qg6 {[%clk 0:01:48.3]}
18. fxe4 {[%clk 0:01:23.4]} 18... Qxg3+ {[%clk 0:01:46.7]} 19. Kf1 {[%clk
0:01:18]} 19... Rae8 {[%clk 0:01:39.4]} 20. e5 {[%clk 0:01:16.5]} 20... g6
{[%clk 0:01:33.4]} 21. Bh6 {[%clk 0:01:14.5]} 21... f6 {[%clk 0:01:29.5]} 22.
Bd5+ {[%clk 0:01:10.8]} 22... Kh8 {[%clk 0:01:24.7]} 23. Qg2 {[%clk 0:00:24.4]}
23... fxe5+ {[%clk 0:01:12.5]} 24. Kg1 {[%clk 0:00:16.6]} 24... Qxc3 {[%clk
0:01:04.2]} 25. Bxf8 {[%clk 0:00:13.3]} 25... Rxf8 {[%clk 0:00:57.1]} 26. Rf1
{[%clk 0:00:06.9]} 26... Qxd4+ {[%clk 0:00:55.4]} 27. Kh2 {[%clk 0:00:06.6]}
27... Rf4 {[%clk 0:00:40.4]} 28. Rxf4 {[%clk 0:00:02.1]} 28... Qxf4+ {[%clk
0:00:39.2]} 29. Kg1 {[%clk 0:00:02.6]} 29... Ne3 {[%clk 0:00:32.9]} 30. Qf2
{[%clk 0:00:02.3]} 30... Qg5+ {[%clk 0:00:29.3]} 0-1

[Event "*** Titled Tuesday Blitz"]
[Site "Chess.com"]
[Date "2021.02.02"]
[Round "8"]
[White "LiamVrolijk"]
[Black "Chopper1905"]
[Result "1/2-1/2"]
[WhiteElo "2867"]
[BlackElo "2940"]
[TimeControl "180+1"]
[EndTime "11:29:28 PST"]
[Termination "Game drawn by agreement"]

1. d4 {[%clk 0:03:00.9]} 1... Nf6 {[%clk 0:02:59.1]} 2. c4 {[%clk 0:03:01]} 2...
e6 {[%clk 0:02:59.6]} 3. Nf3 {[%clk 0:03:00.9]} 3... d5 {[%clk 0:03:00]} 4. Nc3
{[%clk 0:03:01.2]} 4... Bb4 {[%clk 0:03:00.2]} 5. cxd5 {[%clk 0:02:59.1]} 5...
exd5 {[%clk 0:03:00.2]} 6. Bf4 {[%clk 0:02:59.8]} 6... O-O {[%clk 0:02:38]} 7.
e3 {[%clk 0:02:57.8]} 7... c6 {[%clk 0:02:35.2]} 8. h3 {[%clk 0:02:52.1]} 8...
Bf5 {[%clk 0:02:35]} 9. Nh4 {[%clk 0:02:52]} 9... Be4 {[%clk 0:02:25.8]} 10. Be2
{[%clk 0:02:30.8]} 10... Qa5 {[%clk 0:02:11]} 11. Qb3 {[%clk 0:02:20.1]} 11...
c5 {[%clk 0:01:58.6]} 12. Bd6 {[%clk 0:01:58.7]} 12... Nc6 {[%clk 0:01:39.2]}
13. a3 {[%clk 0:01:50.2]} 13... cxd4 {[%clk 0:01:24.3]} 14. Bxb4 {[%clk
0:01:36]} 14... Nxb4 {[%clk 0:01:24.4]} 15. Qxb4 {[%clk 0:01:34]} 15... Qxb4
{[%clk 0:01:24.6]} 16. axb4 {[%clk 0:01:34.9]} 16... dxc3 {[%clk 0:01:25.2]} 17.
bxc3 {[%clk 0:01:35.8]} 17... Rfc8 {[%clk 0:01:18.3]} 18. Kd2 {[%clk 0:01:34.6]}
18... a6 {[%clk 0:01:10.6]} 19. f3 {[%clk 0:01:32.9]} 19... g5 {[%clk
0:01:08.4]} 20. g4 {[%clk 0:01:19.6]} 20... gxh4 {[%clk 0:01:05.9]} 21. g5
{[%clk 0:01:19.6]} 21... Bxf3 {[%clk 0:00:52.6]} 22. Bxf3 {[%clk 0:01:20.5]}
22... Ne4+ {[%clk 0:00:53.2]} 23. Bxe4 {[%clk 0:01:20]} 23... dxe4 {[%clk
0:00:54.1]} 24. Ra5 {[%clk 0:01:15.9]} 24... Rc4 {[%clk 0:00:53.2]} 25. Rd5
{[%clk 0:01:14.4]} 25... Rac8 {[%clk 0:00:46.7]} 26. Rc1 {[%clk 0:01:13.9]}
26... Kg7 {[%clk 0:00:46.5]} 27. Rd7 {[%clk 0:01:10.5]} 27... R8c7 {[%clk
0:00:45.9]} 28. Rxc7 {[%clk 0:01:07.6]} 28... Rxc7 {[%clk 0:00:46.8]} 29. Rg1
{[%clk 0:01:08.1]} 29... Rd7+ {[%clk 0:00:42.8]} 30. Ke2 {[%clk 0:01:06.5]}
30... Rd3 {[%clk 0:00:26.5]} 31. Rg4 {[%clk 0:01:05.5]} 31... Rxc3 {[%clk
0:00:26.6]} 32. Rxe4 {[%clk 0:01:04.5]} 32... Rc2+ {[%clk 0:00:18.1]} 33. Kf3
{[%clk 0:01:04.7]} 33... Ra2 {[%clk 0:00:13.5]} 34. Rxh4 {[%clk 0:01:02.2]}
34... a5 {[%clk 0:00:14]} 35. bxa5 {[%clk 0:01:01.1]} 35... Rxa5 {[%clk
0:00:14.9]} 36. Rg4 {[%clk 0:00:58.1]} 36... h6 {[%clk 0:00:14]} 37. gxh6+
{[%clk 0:00:56.8]} 37... Kxh6 {[%clk 0:00:14.9]} 38. Rb4 {[%clk 0:00:57.1]}
38... Rh5 {[%clk 0:00:11.5]} 39. Rxb7 {[%clk 0:00:50.9]} 39... Rxh3+ {[%clk
0:00:11.1]} 40. Kg4 {[%clk 0:00:51.1]} 40... Rxe3 {[%clk 0:00:10.7]} 41. Rxf7
{[%clk 0:00:51.5]} 41... Re1 {[%clk 0:00:09.3]} 1/2-1/2

[Event "*** Titled Tuesday Blitz"]
[Site "Chess.com"]
[Date "2021.02.02"]
[Round "8"]
[White "MITerryble"]
[Black "Jumbo"]
[Result "1-0"]
[WhiteElo "2934"]
[BlackElo "2814"]
[TimeControl "180+1"]
[EndTime "11:29:30 PST"]
[Termination "MITerryble won on time"]

1. e4 {[%clk 0:03:00.9]} 1... e6 {[%clk 0:02:57.4]} 2. d4 {[%clk 0:03:00.4]}
2... d5 {[%clk 0:02:56.9]} 3. exd5 {[%clk 0:03:01.3]} 3... exd5 {[%clk
0:02:56.5]} 4. Nf3 {[%clk 0:03:01.9]} 4... Nc6 {[%clk 0:02:57]} 5. Bb5 {[%clk
0:03:01.3]} 5... Bd6 {[%clk 0:02:54.4]} 6. h3 {[%clk 0:02:59.7]} 6... Ne7 {[%clk
0:02:54.6]} 7. c4 {[%clk 0:02:59.9]} 7... dxc4 {[%clk 0:02:54.1]} 8. Bxc4 {[%clk
0:03:00.8]} 8... O-O {[%clk 0:02:52.4]} 9. O-O {[%clk 0:03:00]} 9... Nf5 {[%clk
0:02:46.2]} 10. d5 {[%clk 0:02:52.7]} 10... Ne5 {[%clk 0:02:44.4]} 11. Nxe5
{[%clk 0:02:47.1]} 11... Bxe5 {[%clk 0:02:45.3]} 12. Nc3 {[%clk 0:02:47.6]}
12... Nd6 {[%clk 0:02:28.5]} 13. Bd3 {[%clk 0:02:44]} 13... Qh4 {[%clk
0:02:08.3]} 14. Qf3 {[%clk 0:02:33.8]} 14... h5 {[%clk 0:01:55.6]} 15. Re1
{[%clk 0:02:12.6]} 15... Re8 {[%clk 0:01:54.2]} 16. Be3 {[%clk 0:02:02.9]} 16...
Bd7 {[%clk 0:01:46]} 17. Rac1 {[%clk 0:02:00.7]} 17... a6 {[%clk 0:01:24.8]} 18.
Ne4 {[%clk 0:01:58.3]} 18... Nxe4 {[%clk 0:00:47.2]} 19. Bxe4 {[%clk 0:01:59.2]}
19... Bd6 {[%clk 0:00:34.4]} 20. Rc4 {[%clk 0:00:56.3]} 20... Kf8 {[%clk
0:00:06.2]} 21. Bd3 {[%clk 0:00:53.7]} 21... Qf6 {[%clk 0:00:06.1]} 22. Qxh5
{[%clk 0:00:53]} 22... g6 {[%clk 0:00:05.5]} 23. Qh7 {[%clk 0:00:46.9]} 23...
Re5 {[%clk 0:00:03.3]} 24. Bh6+ {[%clk 0:00:43.2]} 24... Ke7 {[%clk 0:00:03.1]}
25. Rce4 {[%clk 0:00:14.8]} 1-0

[Event "*** Titled Tuesday Blitz"]
[Site "Chess.com"]
[Date "2021.02.02"]
[Round "8"]
[White "Tekushka"]
[Black "andrzej"]
[Result "0-1"]
[WhiteElo "2440"]
[BlackElo "2308"]
[TimeControl "180+1"]
[EndTime "11:29:30 PST"]
[Termination "andrzej won by resignation"]

1. e4 {[%clk 0:03:00.9]} 1... c5 {[%clk 0:02:59.9]} 2. Nf3 {[%clk 0:03:00.1]}
2... e6 {[%clk 0:03:00.4]} 3. d4 {[%clk 0:02:59.6]} 3... cxd4 {[%clk 0:03:01.2]}
4. Nxd4 {[%clk 0:03:00.4]} 4... Nf6 {[%clk 0:03:01.8]} 5. Nc3 {[%clk 0:03:00.7]}
5... Nc6 {[%clk 0:03:02.3]} 6. Ndb5 {[%clk 0:02:57.9]} 6... Bb4 {[%clk
0:03:01.4]} 7. a3 {[%clk 0:02:56.8]} 7... Bxc3+ {[%clk 0:03:01.3]} 8. Nxc3
{[%clk 0:02:57.1]} 8... d5 {[%clk 0:03:01.9]} 9. exd5 {[%clk 0:02:57.5]} 9...
exd5 {[%clk 0:03:02.8]} 10. Bd3 {[%clk 0:02:57.8]} 10... d4 {[%clk 0:03:02.8]}
11. Ne2 {[%clk 0:02:57.9]} 11... O-O {[%clk 0:03:02.2]} 12. O-O {[%clk
0:02:57.9]} 12... Qb6 {[%clk 0:02:59.5]} 13. Rb1 {[%clk 0:02:36.9]} 13... Bg4
{[%clk 0:02:52]} 14. f3 {[%clk 0:02:32.7]} 14... Bh5 {[%clk 0:02:51.9]} 15. Nf4
{[%clk 0:02:22.8]} 15... Bg6 {[%clk 0:02:51.9]} 16. Nxg6 {[%clk 0:02:11.3]}
16... hxg6 {[%clk 0:02:51.5]} 17. f4 {[%clk 0:02:08.5]} 17... Rfe8 {[%clk
0:02:38.8]} 18. Qf3 {[%clk 0:02:05.3]} 18... Rad8 {[%clk 0:02:33.8]} 19. Bd2
{[%clk 0:02:04.9]} 19... Nd5 {[%clk 0:02:31]} 20. Qg3 {[%clk 0:01:50.8]} 20...
Ne3 {[%clk 0:02:26]} 21. Rf3 {[%clk 0:01:50.7]} 21... Ne7 {[%clk 0:01:59.6]} 22.
Qg5 {[%clk 0:01:37.5]} 22... Rd5 {[%clk 0:01:34]} 23. Qg3 {[%clk 0:01:19]} 23...
N7f5 {[%clk 0:01:31.9]} 24. Qh3 {[%clk 0:01:12.8]} 24... Nxc2 {[%clk 0:01:24.3]}
25. g4 {[%clk 0:01:00.9]} 25... Nfe3 {[%clk 0:01:23.1]} 26. Qh4 {[%clk
0:00:59.2]} 26... Qd8 {[%clk 0:01:09.9]} 27. g5 {[%clk 0:00:56.1]} 27... Nf5
{[%clk 0:00:53.5]} 28. Bxf5 {[%clk 0:00:55.3]} 28... Rxf5 {[%clk 0:00:50.9]} 29.
Rh3 {[%clk 0:00:55.2]} 29... Kf8 {[%clk 0:00:43.9]} 30. Rc1 {[%clk 0:00:55.3]}
30... d3 {[%clk 0:00:33.6]} 31. Rxc2 {[%clk 0:00:21.4]} 31... Qd4+ {[%clk
0:00:32.8]} 32. Kf1 {[%clk 0:00:17.8]} 32... dxc2 {[%clk 0:00:32.7]} 33. Qh8+
{[%clk 0:00:17.2]} 33... Ke7 {[%clk 0:00:32.8]} 34. Re3+ {[%clk 0:00:17.3]}
34... Qxe3 {[%clk 0:00:29.5]} 35. Bxe3 {[%clk 0:00:17]} 35... Rxh8 {[%clk
0:00:26.6]} 0-1

[Event "*** Titled Tuesday Blitz"]
[Site "Chess.com"]
[Date "2021.02.02"]
[Round "8"]
[White "SergeiAza"]
[Black "Volodar_Murzin"]
[Result "1-0"]
[WhiteElo "2787"]
[BlackElo "2618"]
[TimeControl "180+1"]
[EndTime "11:29:31 PST"]
[Termination "SergeiAza won on time"]

1. e4 {[%clk 0:03:00.9]} 1... c5 {[%clk 0:02:59.4]} 2. Nf3 {[%clk 0:03:01.1]}
2... d6 {[%clk 0:02:59]} 3. d4 {[%clk 0:03:01.3]} 3... cxd4 {[%clk 0:02:59.3]}
4. Nxd4 {[%clk 0:03:02.2]} 4... Nf6 {[%clk 0:02:58.9]} 5. Nc3 {[%clk 0:03:02.9]}
5... a6 {[%clk 0:02:57.9]} 6. Bg5 {[%clk 0:03:03.5]} 6... Nbd7 {[%clk
0:02:57.3]} 7. f4 {[%clk 0:03:01.3]} 7... Qc7 {[%clk 0:02:48.9]} 8. Be2 {[%clk
0:03:01.5]} 8... h6 {[%clk 0:02:46.7]} 9. Bh4 {[%clk 0:03:01]} 9... e5 {[%clk
0:02:45.8]} 10. Nf5 {[%clk 0:02:56.9]} 10... exf4 {[%clk 0:02:19.5]} 11. Qd4
{[%clk 0:02:54.8]} 11... g5 {[%clk 0:01:51.7]} 12. Bf2 {[%clk 0:02:54.3]} 12...
Ne5 {[%clk 0:01:51.2]} 13. O-O-O {[%clk 0:02:53.3]} 13... Be6 {[%clk 0:01:41.9]}
14. h4 {[%clk 0:02:22.8]} 14... g4 {[%clk 0:01:37]} 15. Rhf1 {[%clk 0:02:16.1]}
15... Rg8 {[%clk 0:00:58.6]} 16. Bg1 {[%clk 0:01:47.9]} 16... Nh5 {[%clk
0:00:53.5]} 17. Kb1 {[%clk 0:01:41.5]} 17... f3 {[%clk 0:00:17.8]} 18. gxf3
{[%clk 0:01:33.7]} 18... Nf4 {[%clk 0:00:18.2]} 19. fxg4 {[%clk 0:01:18.5]}
19... Nxe2 {[%clk 0:00:17.2]} 20. Nxe2 {[%clk 0:01:19]} 20... Rxg4 {[%clk
0:00:16.2]} 21. Nf4 {[%clk 0:01:16.2]} 21... Qc4 {[%clk 0:00:12.8]} 22. Nxe6
{[%clk 0:01:06.9]} 22... Qxe6 {[%clk 0:00:11.4]} 23. Qb6 {[%clk 0:00:56.2]}
23... Qd7 {[%clk 0:00:04.8]} 24. Nxd6+ {[%clk 0:00:46.1]} 24... Bxd6 {[%clk
0:00:04.4]} 25. Rxd6 {[%clk 0:00:46.5]} 25... Qb5 {[%clk 0:00:03.7]} 26. Qf2
{[%clk 0:00:34]} 26... Rxe4 {[%clk 0:00:02.4]} 27. Bh2 {[%clk 0:00:17.5]} 1-0